fUST/lending_fUST_20250615
["ID","MTS","AMOUNT","RATE_DAILY","PERIOD"]
[365818127,1749935441846,-158.8714084,0.00023014,2]
[365818128,1749935441855,-1147.5719738,0.00023014,2]
[365818129,1749935441865,-353.9875236,0.00023014,2]
[365818130,1749935441874,-153.0,0.00023014,2]
[365818131,1749935441884,-1000.0,0.00023021,2]
[365818132,1749935441894,-1000.0,0.00023021,2]
[365818133,1749935441904,-894.72218881,0.00023038,8]
[365818134,1749935441914,-600.0,0.0002304,2]
[365818135,1749935441924,-153.85728298,0.00023048,2]
[365818136,1749935441933,-894.72218881,0.00023141,8]
[365818137,1749935441943,-178.205831,0.00023142,4]
[365818138,1749935441953,-425.09696969,0.00023203,2]
[365818139,1749935441964,-894.72218881,0.00023245,8]
[365818140,1749935441973,-5000.0,0.00023274,2]
[365818141,1749935441983,-600.0,0.0002328,2]
[365818142,1749935441992,-460.0,0.00023287,4]
[365818143,1749935442001,-679.55,0.00023287,4]
[365818144,1749935442011,-542.82,0.00023287,4]
[365818145,1749935442020,-460.0,0.00023287,4]
[365818146,1749935442029,-460.0,0.00023287,4]
[365818147,1749935442039,-460.0,0.00023287,4]
[365818148,1749935442049,-460.0,0.00023287,4]
[365818149,1749935442058,-460.0,0.00023287,4]
[365818150,1749935442068,-460.0,0.00023287,4]
[365818151,1749935442079,-460.0,0.00023287,4]
[365818152,1749935442089,-460.0,0.00023287,4]
[365818153,1749935442098,-460.0,0.00023287,4]
[365818154,1749935442108,-220.0,0.00023287,4]
[365818155,1749935442118,-1560.62,0.00023287,4]
[365818156,1749935442127,-389.70908746,0.00023287,4]
[365818157,1749935442136,-497.88,0.00023287,4]
[365818158,1749935442146,-460.0,0.00023287,4]
[365818159,1749935442155,-533.89553763,0.00023287,4]
[365818160,1749935442164,-460.0,0.00023287,4]
[365818161,1749935442174,-511.51,0.00023287,4]
[365818162,1749935442183,-460.0,0.00023287,4]
[365818163,1749935442192,-460.0,0.00023287,4]
[365818164,1749935442202,-1606.54,0.00023287,4]
[365818165,1749935442211,-460.0,0.00023287,4]
[365818166,1749935442220,-360.0,0.00023287,4]
[365818167,1749935442230,-460.0,0.00023287,4]
[365818168,1749935442239,-1137.27,0.00023287,4]
[365818169,1749935442248,-460.0,0.00023287,4]
[365818170,1749935442258,-1400.91,0.00023287,4]
[365818171,1749935442267,-460.0,0.00023287,4]
[365818172,1749935442277,-460.0,0.00023287,4]
[365818173,1749935442286,-460.0,0.00023287,4]
[365818174,1749935442296,-460.0,0.00023287,4]
[365818175,1749935442306,-3378.07,0.00023287,4]
[365818176,1749935442315,-521.68,0.00023287,4]
[365818177,1749935442325,-460.0,0.00023287,4]
[365818178,1749935442334,-768.84,0.00023287,4]
[365818180,1749935442344,-460.0,0.00023287,4]
[365818181,1749935442353,-1373.01,0.00023287,4]
[365818182,1749935442362,-460.0,0.00023287,4]
[365818183,1749935442371,-460.0,0.00023287,4]
[365818184,1749935442380,-460.0,0.00023287,4]
[365818185,1749935442390,-1100.99,0.00023287,4]
[365818186,1749935442399,-460.0,0.00023287,4]
[365818187,1749935442408,-460.0,0.00023287,4]
[365818188,1749935442418,-1006.56,0.00023287,4]
[365818189,1749935442427,-460.0,0.00023287,4]
[365818190,1749935442436,-886.4,0.00023287,4]
[365818191,1749935442445,-460.0,0.00023287,4]
[365818192,1749935442455,-1001.86,0.00023287,4]
[365818194,1749935442464,-3137.34,0.00023287,4]
[365818196,1749935442473,-460.0,0.00023287,4]
[365818198,1749935442482,-3348.27,0.00023287,4]
[365818200,1749935442492,-636.1,0.00023287,4]
[365818201,1749935442501,-1209.67,0.00023287,4]
[365818203,1749935442510,-460.0,0.00023287,4]
[365818205,1749935442519,-814.04,0.00023287,4]
[365818207,1749935442528,-360.0,0.00023287,4]
[365818208,1749935442537,-2511.11,0.00023287,4]
[365818209,1749935442547,-3408.26,0.00023287,4]
[365818210,1749935442557,-3586.31,0.00023287,4]
[365818211,1749935442567,-524.24,0.00023287,4]
[365818212,1749935442577,-1361.9,0.00023287,4]
[365818213,1749935442587,-460.0,0.00023287,4]
[365818214,1749935442596,-776.91,0.00023287,4]
[365818215,1749935442606,-460.0,0.00023287,4]
[365818216,1749935442616,-3766.7,0.00023287,4]
[365818217,1749935442625,-460.0,0.00023287,2]
[365818218,1749935442634,-380.0,0.00023287,4]
[365818219,1749935442643,-572.14,0.00023287,4]
[365818220,1749935442653,-460.0,0.00023287,4]
[365818221,1749935442664,-460.0,0.00023287,4]
[365818222,1749935442674,-570.44181233,0.00023287,4]
[365818223,1749935442683,-460.0,0.00023287,4]
[365818224,1749935442693,-2251.75,0.00023287,4]
[365818225,1749935442703,-460.0,0.00023287,4]
[365818226,1749935442712,-1606.22,0.00023287,4]
[365818227,1749935442722,-2303.18,0.00023287,4]
[365818228,1749935442733,-360.0,0.00023287,4]
[365818229,1749935442743,-466.36,0.00023287,4]
[365818230,1749935442753,-612.26,0.00023287,4]
[365818231,1749935442762,-306.0,0.00023342,2]
[365818232,1749935442771,-157.51925231,0.00023345,2]
[365818233,1749935442781,-500.0,0.00023346,2]
[365818234,1749935442790,-894.72218881,0.00023348,9]
[365818235,1749935442799,-894.72218881,0.00023452,9]
[365818236,1749935442809,-425.09696969,0.00023497,2]
[365818237,1749935442819,-1423.306195,0.0002352,3]
[365818238,1749935442829,-603.05998381,0.0002352,2]
[365818239,1749935442840,-405.0,0.00023554,2]
[365818240,1749935442849,-405.0,0.00023554,2]
[365818241,1749935442859,-894.72218881,0.00023555,9]
[365818242,1749935442868,-800.0,0.00023556,2]
[365818243,1749935442878,-360.0,0.00023561,4]
[365818244,1749935442887,-679.55,0.00023561,4]
[365818245,1749935442897,-542.82,0.00023561,4]
[365818246,1749935442906,-460.0,0.00023561,4]
[365818247,1749935442916,-460.0,0.00023561,4]
[365818248,1749935442925,-360.0,0.00023561,4]
[365818249,1749935442934,-460.0,0.00023561,4]
[365818250,1749935442943,-460.0,0.00023561,4]
[365818251,1749935442953,-330.0,0.00023561,4]
[365818252,1749935442963,-360.0,0.00023561,4]
[365818253,1749935442972,-360.0,0.00023561,4]
[365818254,1749935442982,-460.0,0.00023561,4]
[365818255,1749935442991,-1560.62,0.00023561,4]
[365818256,1749935443001,-497.88,0.00023561,4]
[365818257,1749935443011,-460.0,0.00023561,4]
[365818258,1749935443021,-460.0,0.00023561,4]
[365818259,1749935443031,-511.51,0.00023561,4]
[365818260,1749935443041,-460.0,0.00023561,4]
[365818261,1749935443051,-460.0,0.00023561,4]
[365818262,1749935443061,-1606.54,0.00023561,4]
[365818263,1749935443071,-460.0,0.00023561,4]
[365818264,1749935443083,-460.0,0.00023561,4]
[365818265,1749935443093,-1137.27,0.00023561,4]
[365818266,1749935443103,-460.0,0.00023561,4]
[365818267,1749935443113,-1400.91,0.00023561,4]
[365818268,1749935443123,-460.0,0.00023561,4]
[365818269,1749935443132,-460.0,0.00023561,4]
[365818270,1749935443142,-460.0,0.00023561,4]
[365818272,1749935443151,-460.0,0.00023561,4]
[365818273,1749935443162,-3378.07,0.00023561,4]
[365818274,1749935443172,-521.68,0.00023561,4]
[365818275,1749935443181,-460.0,0.00023561,4]
[365818276,1749935443191,-768.84,0.00023561,4]
[365818277,1749935443200,-460.0,0.00023561,4]
[365818278,1749935443210,-1373.01,0.00023561,4]
[365818279,1749935443219,-460.0,0.00023561,4]
[365818280,1749935443229,-460.0,0.00023561,4]
[365818281,1749935443238,-460.0,0.00023561,4]
[365818282,1749935443247,-1100.99,0.00023561,4]
[365818283,1749935443256,-460.0,0.00023561,4]
[365818284,1749935443266,-460.0,0.00023561,4]
[365818285,1749935443276,-1006.56,0.00023561,4]
[365818286,1749935443285,-460.0,0.00023561,4]
[365818287,1749935443295,-886.4,0.00023561,4]
[365818288,1749935443304,-460.0,0.00023561,4]
[365818289,1749935443313,-1001.86,0.00023561,4]
[365818290,1749935443325,-3137.34,0.00023561,4]
[365818291,1749935443335,-460.0,0.00023561,4]
[365818292,1749935443344,-3348.27,0.00023561,4]
[365818293,1749935443354,-636.1,0.00023561,4]
[365818294,1749935443364,-1209.67,0.00023561,4]
[365818295,1749935443374,-460.0,0.00023561,4]
[365818296,1749935443383,-814.04,0.00023561,4]
[365818297,1749935443393,-2511.11,0.00023561,4]
[365818298,1749935443403,-3408.26,0.00023561,4]
[365818299,1749935443413,-3586.31,0.00023561,4]
[365818300,1749935443422,-524.24,0.00023561,4]
[365818301,1749935443432,-1361.9,0.00023561,4]
[365818302,1749935443441,-460.0,0.00023561,4]
[365818303,1749935443451,-776.91,0.00023561,4]
[365818304,1749935443461,-360.0,0.00023561,4]
[365818305,1749935443471,-3766.7,0.00023561,4]
[365818306,1749935443480,-460.0,0.00023561,2]
[365818307,1749935443489,-572.14,0.00023561,4]
[365818308,1749935443499,-460.0,0.00023561,4]
[365818309,1749935443508,-360.0,0.00023561,4]
[365818310,1749935443518,-460.0,0.00023561,4]
[365818311,1749935443527,-2251.75,0.00023561,4]
[365818312,1749935443537,-460.0,0.00023561,4]
[365818313,1749935443547,-1606.22,0.00023561,4]
[365818314,1749935443557,-2303.18,0.00023561,4]
[365818315,1749935443566,-466.36,0.00023561,4]
[365818316,1749935443575,-612.26,0.00023561,4]
[365818317,1749935443585,-1500.0,0.00023568,2]
[365818318,1749935443594,-652.99,0.000236,7]
[365818319,1749935443604,-4434.63758628,0.00023629,2]
[365818320,1749935443614,-365.2762568,0.00023644,2]
[365818321,1749935443623,-365.2762568,0.00023644,2]
[365818322,1749935443632,-365.2762568,0.00023644,2]
[365818323,1749935443642,-365.2762568,0.00023644,2]
[365818324,1749935443652,-365.2762568,0.00023644,2]
[365818326,1749935443665,-894.72218881,0.00023659,9]
[365818327,1749935443674,-153.85728298,0.00023664,2]
[365818328,1749935443684,-3000.0,0.000237,2]
[365818329,1749935443695,-425.09696971,0.00023701,2]
[365818330,1749935443704,-3000.0,0.0002371,2]
[365818331,1749935443714,-3000.0,0.0002372,2]
[365818332,1749935443723,-800.0,0.00023722,2]
[365818333,1749935443733,-3000.0,0.0002373,2]
[365818334,1749935443743,-3000.0,0.0002374,2]
[365818335,1749935443752,-235.761,0.00023745,2]
[365818336,1749935443761,-152.35,0.00023745,2]
[365818337,1749935443771,-250.0,0.00023745,2]
[365818338,1749935443781,-3000.0,0.0002375,2]
[365818339,1749935443791,-3000.0,0.0002376,2]
[365818340,1749935443800,-5188.43487911,0.0002376,2]
[365818341,1749935443810,-894.72218881,0.00023762,9]
[365818342,1749935443819,-150.0,0.00023764,2]
[365818343,1749935443829,-150.0,0.00023764,2]
[365818344,1749935443838,-150.0,0.00023764,2]
[365818345,1749935443847,-964.0,0.00023764,2]
[365818347,1749935443958,-653.0,0.00023764,2]
[365818349,1749935443968,-2160.0,0.00023764,2]
[365818351,1749935443978,-326.46134904,0.00023764,2]
[365818352,1749935443987,-3000.0,0.0002377,2]
[365818353,1749935443996,-3000.0,0.0002378,2]
[365818354,1749935444006,-3000.0,0.0002379,2]
[365818356,1749935444015,-3000.0,0.000238,2]
[365818357,1749935444025,-151.0,0.000238,10]
[365818359,1749935444034,-2614.41,0.000238,2]
[365818360,1749935444044,-157.51925231,0.000238,2]
[365818361,1749935444053,-3000.0,0.0002381,2]
[365818362,1749935444063,-420.0,0.00023817,2]
[365818363,1749935444072,-3000.0,0.0002382,2]
[365818364,1749935444082,-5000.0,0.00023822,2]
[365818365,1749935444091,-3000.0,0.0002383,2]
[365818366,1749935444100,-679.55,0.00023835,4]
[365818367,1749935444110,-542.82,0.00023835,4]
[365818368,1749935444119,-260.0,0.00023835,4]
[365818369,1749935444129,-460.0,0.00023835,4]
[365818370,1749935444138,-460.0,0.00023835,4]
[365818371,1749935444148,-460.0,0.00023835,4]
[365818372,1749935444157,-460.0,0.00023835,4]
[365818373,1749935444166,-1560.62,0.00023835,4]
[365818374,1749935444176,-497.88,0.00023835,4]
[365818375,1749935444185,-460.0,0.00023835,4]
[365818376,1749935444195,-460.0,0.00023835,4]
[365818377,1749935444203,-511.51,0.00023835,4]
[365818378,1749935444212,-460.0,0.00023835,4]
[365818379,1749935444221,-460.0,0.00023835,4]
[365818380,1749935444230,-1606.54,0.00023835,4]
[365818381,1749935444240,-460.0,0.00023835,4]
[365818382,1749935444250,-460.0,0.00023835,4]
[365818383,1749935444259,-1137.27,0.00023835,4]
[365818384,1749935444269,-460.0,0.00023835,4]
[365818385,1749935444278,-1400.91,0.00023835,4]
[365818386,1749935444287,-460.0,0.00023835,4]
[365818387,1749935444297,-460.0,0.00023835,4]
[365818388,1749935444307,-460.0,0.00023835,4]
[365818389,1749935444317,-460.0,0.00023835,4]
[365818390,1749935444327,-3378.07,0.00023835,4]
[365818391,1749935444337,-521.68,0.00023835,4]
[365818392,1749935444346,-460.0,0.00023835,4]
[365818393,1749935444356,-768.84,0.00023835,4]
[365818394,1749935444366,-460.0,0.00023835,4]
[365818395,1749935444375,-1373.01,0.00023835,4]
[365818396,1749935444384,-460.0,0.00023835,4]
[365818397,1749935444396,-460.0,0.00023835,4]
[365818398,1749935444406,-300.0,0.00023835,4]
[365818399,1749935444416,-1100.99,0.00023835,4]
[365818400,1749935444427,-460.0,0.00023835,4]
[365818401,1749935444436,-460.0,0.00023835,4]
[365818402,1749935444446,-1006.56,0.00023835,4]
[365818403,1749935444455,-460.0,0.00023835,4]
[365818404,1749935444465,-886.4,0.00023835,4]
[365818405,1749935444475,-460.0,0.00023835,4]
[365818406,1749935444485,-1001.86,0.00023835,4]
[365818407,1749935444495,-3137.34,0.00023835,4]
[365818408,1749935444505,-460.0,0.00023835,4]
[365818409,1749935444515,-3348.27,0.00023835,4]
[365818410,1749935444525,-636.1,0.00023835,4]
[365818411,1749935444534,-1209.67,0.00023835,4]
[365818412,1749935444544,-460.0,0.00023835,4]
[365818413,1749935444553,-814.04,0.00023835,4]
[365818414,1749935444563,-2511.11,0.00023835,4]
[365818415,1749935444572,-3408.26,0.00023835,4]
[365818416,1749935444584,-3586.31,0.00023835,4]
[365818417,1749935444594,-524.24,0.00023835,4]
[365818418,1749935444604,-1361.9,0.00023835,4]
[365818419,1749935444614,-460.0,0.00023835,4]
[365818420,1749935444624,-776.91,0.00023835,4]
[365818421,1749935444634,-3766.7,0.00023835,4]
[365818422,1749935444645,-460.0,0.00023835,2]
[365818423,1749935444658,-572.14,0.00023835,4]
[365818424,1749935444668,-460.0,0.00023835,4]
[365818425,1749935444678,-460.0,0.00023835,4]
[365818426,1749935444688,-2251.75,0.00023835,4]
[365818427,1749935444699,-460.0,0.00023835,4]
[365818428,1749935444710,-1606.22,0.00023835,4]
[365818429,1749935444720,-2303.18,0.00023835,4]
[365818430,1749935444730,-466.36,0.00023835,4]
[365818431,1749935444741,-612.26,0.00023835,4]
[365818432,1749935444750,-800.0,0.00023838,2]
[365818433,1749935444760,-3946.295596,0.0002384,2]
[365818434,1749935444769,-800.0,0.00023858,2]
[365818435,1749935444780,-894.72218881,0.00023866,10]
[365818436,1749935444790,-10007.0,0.0002387,2]
[365818437,1749935444801,-150.0,0.000239,2]
[365818438,1749935444810,-639.0,0.000239,2]
[365818439,1749935444820,-5738.07650511,0.000239,2]
[365818440,1749935444835,-317.0,0.00023906,3]
[365818441,1749935444846,-800.0,0.00023913,2]
[365818442,1749935444855,-894.72218881,0.00023969,10]
[365818443,1749935444865,-333.56436477,0.00023973,2]
[365818444,1749935444875,-500.0,0.00023973,2]
[365818445,1749935444884,-399.78354313,0.00023973,2]
[365818446,1749935444894,-150.0,0.00023973,2]
[365818447,1749935444904,-500.0,0.00023973,2]
[365818448,1749935444914,-500.0,0.00023973,2]
[365818449,1749935444924,-600.0,0.00023973,2]
[365818450,1749935444933,-392.67113613,0.00023973,2]
[365818451,1749935444943,-500.0,0.00023973,2]
[365818452,1749935444953,-3535.7469122,0.0002398,2]
[365818453,1749935444963,-6453.00891741,0.0002398,2]
[365818454,1749935444973,-501.91821307,0.0002398,9]
[365818455,1749935444982,-500.0,0.0002398,9]
[365818456,1749935444992,-125776.27281844,0.0002398,2]
[365818457,1749935445002,-151.0,0.0002398,7]
[365818458,1749935445012,-151.0,0.0002398,7]
[365818459,1749935445022,-155.0,0.0002398,2]
[365818460,1749935445031,-151.0,0.0002398,7]
[365818461,1749935445041,-151.0,0.0002398,7]
[365818462,1749935445052,-324.0,0.00023981,2]
[365818463,1749935445062,-3711.68091189,0.0002399,2]
[365818464,1749935445071,-151.0,0.0002399,7]
[365818465,1749935445084,-417.8986454,0.0002399,2]
[365818466,1749935445094,-200.0,0.00023999,2]
[365818467,1749935445103,-200.0,0.00023999,2]
[365818468,1749935445112,-118896.31304773,0.00024,2]
[365818469,1749935445131,-3640.93368004,0.00024,2]
[365818470,1749935445149,-5678.8645972,0.00024,2]
[365818471,1749935445167,-12077.55612896,0.00024,2]
[365818472,1749935445184,-1602.97855026,0.00024,2]
[365818473,1749935445199,-2500.8274349,0.00024,2]
[365818474,1749935445216,-65404.34531943,0.00024,2]
[365818475,1749935445231,-297.33576601,0.00024,2]
[365818476,1749935445309,-460.0,0.00021917,4]
[365818477,1749935445322,-1944.5012968,0.00024,2]
[365818497,1749935445556,-39062.5163051,0.00024,2]
[365818504,1749935446010,-460.0,0.00021917,4]
[365818594,1749936170500,185.957585,0.00013699,2]
[365818600,1749936414072,490.97612917,0.000189,2]
[365818601,1749936435248,-214.17422079,0.00020087,2]
[365818602,1749936435270,-46.23812755,0.00020187,2]
[365818603,1749936442100,-139.71945745,0.00020187,2]
[365818604,1749936442123,-172.53319,0.00020573,2]
[365818605,1749936442145,-160.0,0.00020591,2]
[365818606,1749936442167,-666.0,0.00020601,2]
[365818607,1749936442189,-165.38119646,0.00020666,2]
[365818608,1749936442212,-169.689085,0.00020766,2]
[365818609,1749936442233,-169.689085,0.00020869,2]
[365818610,1749936442254,-4657.38896561,0.00021012,2]
[365818613,1749936520849,302.0,0.0002,120]
[365818615,1749936548127,-169.84225268,0.00019,2]
[365818671,1749936632133,-15.05174973,0.00019,2]
[365818673,1749936632143,-300.0,0.00020633,2]
[365818675,1749936632153,-242.47472456,0.00020633,2]
[365818677,1749936632164,-262.5,0.00020633,2]
[365818686,1749936632243,-695.02527544,0.00020633,2]
[365818688,1749936632253,-24241.6466391,0.00020634,2]
[365818690,1749936632263,-342.61103439,0.00021012,2]
[365818692,1749936632272,-423.39112726,0.00021053,2]
[365818694,1749936632282,-500.0,0.00021154,2]
[365818696,1749936632291,-194.0,0.00021258,2]
[365818699,1749936632301,-194.0,0.00021346,2]
[365818702,1749936632310,-1276.65,0.00021438,2]
[365818705,1749936632319,-300.0,0.00021622,2]
[365818707,1749936632329,-194.0,0.00021623,2]
[365818710,1749936632339,-153.85728298,0.00021817,2]
[365818711,1749936632350,-166.26778906,0.00021817,2]
[365818713,1749936632359,-574.38998036,0.000219,6]
[365818715,1749936632369,-4479.458,0.00021916,2]
[365818717,1749936632379,-500.0,0.00021916,2]
[365818719,1749936632388,-550.0,0.00021916,2]
[365818721,1749936632398,-175.188,0.00021916,2]
[365818723,1749936632408,-1000.0,0.00021916,2]
[365818725,1749936632418,-1000.0,0.00021916,2]
[365818727,1749936632428,-1000.0,0.00021916,2]
[365818729,1749936632438,-525.45,0.00021916,2]
[365818731,1749936632447,-500.0,0.00021916,2]
[365818733,1749936632457,-500.0,0.00021916,2]
[365818734,1749936632466,-500.0,0.00021916,2]
[365818736,1749936632476,-249.15960999,0.00021916,2]
[365818738,1749936632486,-500.0,0.00021916,2]
[365818740,1749936632496,-500.0,0.00021916,2]
[365818742,1749936632505,-500.0,0.00021916,2]
[365818744,1749936632515,-420.0,0.00021917,4]
[365818746,1749936632525,-460.0,0.00021917,4]
[365818748,1749936632535,-431.01280067,0.00021917,4]
[365818750,1749936632544,-460.0,0.00021917,4]
[365818752,1749936632554,-460.0,0.00021917,4]
[365818754,1749936632564,-414.0,0.00021917,4]
[365818756,1749936632573,-430.0,0.00021917,4]
[365818758,1749936632583,-460.0,0.00021917,4]
[365818760,1749936632593,-370.0,0.00021917,2]
[365818762,1749936632602,-481.09,0.00021917,4]
[365818764,1749936632611,-430.0,0.00021917,4]
[365818766,1749936632620,-430.0,0.00021917,4]
[365818768,1749936632630,-460.0,0.00021917,4]
[365818770,1749936632639,-390.0,0.00021917,4]
[365818772,1749936632650,-430.0,0.00021917,4]
[365818774,1749936632659,-460.0,0.00021917,4]
[365818776,1749936632669,-460.0,0.00021917,4]
[365818778,1749936632678,-510.0,0.00021917,4]
[365818780,1749936632688,-430.0,0.00021917,4]
[365818782,1749936632697,-460.0,0.00021917,4]
[365818784,1749936632706,-162.48177066,0.00021917,4]
[365818786,1749936632716,-460.0,0.00021917,4]
[365818788,1749936632725,-260.0,0.00021917,4]
[365818790,1749936632735,-460.0,0.00021917,4]
[365818792,1749936632744,-430.0,0.00021917,4]
[365818795,1749936632753,-430.0,0.00021917,4]
[365818797,1749936632763,-460.0,0.00021917,4]
[365818800,1749936632773,-270.0,0.00021917,4]
[365818802,1749936632783,-325.79861092,0.00021917,4]
[365818804,1749936632793,-250.0,0.00021917,4]
[365818806,1749936632803,-213.37467369,0.00021917,4]
[365818808,1749936632813,-430.0,0.00021917,4]
[365818809,1749936632822,-420.0,0.00021917,4]
[365818811,1749936632831,-460.0,0.00021917,4]
[365818813,1749936632841,-240.0,0.00021917,4]
[365818815,1749936632850,-408.54429707,0.00021917,4]
[365818817,1749936632860,-330.0,0.00021917,4]
[365818820,1749936632869,-460.0,0.00021917,4]
[365818822,1749936632878,-460.0,0.00021917,4]
[365818824,1749936632888,-460.0,0.00021917,4]
[365818826,1749936632897,-163.66305584,0.00021917,4]
[365818828,1749936632907,-460.0,0.00021917,4]
[365818830,1749936632916,-746.76,0.00021917,4]
[365818832,1749936632925,-303.97387247,0.00021917,4]
[365818834,1749936632934,-460.0,0.00021917,4]
[365818836,1749936632943,-420.0,0.00021917,4]
[365818838,1749936632953,-460.0,0.00021917,4]
[365818839,1749936632963,-333.56687481,0.00021917,4]
[365818842,1749936632973,-460.0,0.00021917,4]
[365818843,1749936632982,-460.0,0.00021917,4]
[365818845,1749936632992,-450.0,0.00021917,4]
[365818848,1749936633001,-279.49,0.00021917,4]
[365818849,1749936633011,-460.0,0.00021917,4]
[365818851,1749936633021,-460.0,0.00021917,4]
[365818853,1749936633034,-400.0,0.00021917,4]
[365818854,1749936633044,-595.33,0.00021917,4]
[365818855,1749936633053,-460.0,0.00021917,4]
[365818856,1749936633063,-432.38763229,0.00021917,4]
[365818857,1749936633074,-602.30725701,0.00021917,4]
[365818858,1749936633084,-460.0,0.00021917,4]
[365818859,1749936633093,-460.0,0.00021917,4]
[365818860,1749936633103,-430.0,0.00021917,4]
[365818861,1749936633114,-430.0,0.00021917,4]
[365818862,1749936633124,-460.0,0.00021917,4]
[365818863,1749936633134,-410.34342262,0.00021917,4]
[365818864,1749936633144,-460.0,0.00021917,4]
[365818865,1749936633153,-460.0,0.00021917,4]
[365818866,1749936633163,-460.0,0.00021917,4]
[365818867,1749936633172,-430.0,0.00021917,4]
[365818868,1749936633181,-420.0,0.00021917,4]
[365818869,1749936633191,-310.0,0.00021917,4]
[365818870,1749936633201,-460.0,0.00021917,4]
[365818871,1749936633210,-460.0,0.00021917,4]
[365818872,1749936633219,-401.71574444,0.00021917,4]
[365818873,1749936633229,-460.0,0.00021917,4]
[365818874,1749936633238,-460.0,0.00021917,4]
[365818875,1749936633247,-420.0,0.00021917,4]
[365818876,1749936633257,-460.0,0.00021917,4]
[365818877,1749936633267,-605.82942444,0.00021917,4]
[365818878,1749936633276,-460.0,0.00021917,4]
[365818879,1749936633286,-396.55740732,0.00021917,4]
[365818880,1749936633296,-430.0,0.00021917,4]
[365818881,1749936633306,-460.0,0.00021917,4]
[365818882,1749936633316,-430.0,0.00021917,4]
[365818883,1749936633325,-460.0,0.00021917,4]
[365818884,1749936633335,-460.0,0.00021917,4]
[365818885,1749936633346,-415.51965597,0.00021917,4]
[365818886,1749936633356,-430.0,0.00021917,4]
[365818887,1749936633367,-460.0,0.00021917,4]
[365818888,1749936633377,-460.0,0.00021917,4]
[365818889,1749936633388,-460.0,0.00021917,4]
[365818890,1749936633398,-460.0,0.00021917,4]
[365818891,1749936633408,-460.0,0.00021917,4]
[365818892,1749936633418,-460.0,0.00021917,4]
[365818893,1749936633427,-460.0,0.00021917,4]
[365818894,1749936633437,-460.0,0.00021917,4]
[365818895,1749936633448,-460.0,0.00021917,4]
[365818896,1749936633457,-460.0,0.00021917,4]
[365818897,1749936633466,-460.0,0.00021917,4]
[365818898,1749936633475,-460.0,0.00021917,4]
[365818899,1749936633484,-460.0,0.00021917,4]
[365818900,1749936633493,-460.0,0.00021917,4]
[365818901,1749936633502,-460.0,0.00021917,4]
[365818902,1749936633511,-460.0,0.00021917,4]
[365818903,1749936633521,-430.0,0.00021917,4]
[365818904,1749936633530,-1319.82,0.00021917,4]
[365818905,1749936633539,-460.0,0.00021917,4]
[365818906,1749936633548,-460.0,0.00021917,4]
[365818907,1749936633558,-460.0,0.00021917,4]
[365818908,1749936633567,-460.0,0.00021917,4]
[365818909,1749936633576,-460.0,0.00021917,4]
[365818910,1749936633585,-430.0,0.00021917,4]
[365818911,1749936633596,-425.15323334,0.00021917,4]
[365818912,1749936633605,-430.0,0.00021917,4]
[365818913,1749936633614,-430.0,0.00021917,4]
[365818914,1749936633624,-430.0,0.00021917,4]